{"text_format":"1","workbook":"xlsx","n_sheets":1,"sheets":["Pressupost Projecte Ac"],"not_rendered":{"charts":0,"images":2,"macros":1,"external_links":0,"defined_names":1,"comments":1,"pivot_tables":0},"unopened":[],"bounds":{"document_bytes":16777216,"sheet_cells":100000,"rows_first":2000,"rows_last":500,"rows_between":2000,"halvings":0,"cell_chars":16384,"cell_head_chars":4096},"cells_cut":0,"cells_raw":0,"read":"whole","date_system":"1900"}

{"sheet":"Pressupost Projecte Ac","index":0,"n_rows":159,"n_cols":6,"rows_kept":159,"cut":false,"hidden":false,"merged":[[2,1,3,5],[55,2,55,3],[88,2,88,3],[130,2,130,3],[152,2,152,3]]}
[null,null,null,null,null,"Documento básico 3"]
[null,null,null,null,null,"Àmbit temàtic \"A\": Creació i Consolidació"]
["Subvencions de l'Ajuntament de Barcelona per a","Modalitat \"c\": Formación: Innovación y formación para la mejora de la gestión y la apertura de nuevas líneas de negocio."]
["la promoció i reforç de l'economia social i solidària 2020"]
[null,null,null,null,null,"Se deben rellenar las celdas en blanco, y añadir filas en caso que sea necesario."]
[null,null,null,null,null,"Consultar anotaciones a pie de página antes de completar los datos."]
[]
["DATOS BÁSICOS"]
["Nombre de la persona jurídica/física",null,null,null,null,"  "]
["NIF de la persona jurídica/física"]
["Denominación del proyecto"]
["Importe total del proyecto"]
["Importe imputable a la subvención municipal"]
["% de l’Importe solicitado a la subvención municipal a cambiar en REC (Recurs Econòmic Ciutadà) "]
["Importe de l'aportació / Cofinanciación de la entidad",{"$f":"B12-B13","v":0}]
["% de l'Importe solicitado respecto al total del proyecto subvencionable",{"$f":"B13/B12","v":{"$error":"#DIV/0!"}}]
["Data inici del projecte subvencionat (dd/mm/aaaa)"]
["Data fi del projecte subvencionat (dd/mm/aaaa)"]
[]
["PREVISIÓN DE GASTOS DEL PROYECTO SUBVENCIONABLE"]
["c1. Formación grupal para personas socias, trabajadoras y voluntarias de la entidad."]
[]
["Partidas","Importe total del proyecto","Importe imputable a la subvención municipal","Importe de l'aportació / Cofinanciación de la entidad"]
["1.  Honorarios de los/las formadores/as externas. ",{"$f":"SUM(DespesesProjecteAb1[[#This Row],[Importe imputable a la subvención municipal]],DespesesProjecteAb1[[#This Row],[Importe de l''aportació / Cofinanciación de la entidad]])","v":0},{"$f":"SUM(C25:C27)","v":0},{"$f":"SUM(D25:D27)","v":0}]
[]
[]
[]
["2.  Coste salarial de las personas participantes (Max 40%)",{"$f":"SUM(DespesesProjecteAb1[[#This Row],[Importe imputable a la subvención municipal]],DespesesProjecteAb1[[#This Row],[Importe de l''aportació / Cofinanciación de la entidad]])","v":0},{"$f":"SUM(C29:C31)","v":0},{"$f":"SUM(D29:D31)","v":0}]
[]
[]
[]
["3.  Alquiler de bienes inmuebles directamente vinculados al proyecto subvencionable.",{"$f":"SUM(DespesesProjecteAb1[[#This Row],[Importe imputable a la subvención municipal]],DespesesProjecteAb1[[#This Row],[Importe de l''aportació / Cofinanciación de la entidad]])","v":0},{"$f":"SUM(C33:C35)","v":0},{"$f":"SUM(D33:D35)","v":0}]
[]
[]
[]
["4.  Adquisición de materiales y bienes consumibles íntegramente imputables al proyecto subvencionable.",{"$f":"SUM(DespesesProjecteAb1[[#This Row],[Importe imputable a la subvención municipal]],DespesesProjecteAb1[[#This Row],[Importe de l''aportació / Cofinanciación de la entidad]])","v":0},{"$f":"SUM(C37:C39)","v":0},{"$f":"SUM(D37:D39)","v":0}]
[]
[]
[]
["5.  Transporte – mensajería imputable al proyecto.",{"$f":"SUM(DespesesProjecteAb1[[#This Row],[Importe imputable a la subvención municipal]],DespesesProjecteAb1[[#This Row],[Importe de l''aportació / Cofinanciación de la entidad]])","v":0},{"$f":"SUM(C41:C43)","v":0},{"$f":"SUM(D41:D43)","v":0}]
[]
[]
[]
["6.  Seguros",{"$f":"SUM(DespesesProjecteAb1[[#This Row],[Importe imputable a la subvención municipal]],DespesesProjecteAb1[[#This Row],[Importe de l''aportació / Cofinanciación de la entidad]])","v":0},{"$f":"SUM(C45:C47)","v":0},{"$f":"SUM(D45:D47)","v":0}]
[]
[]
[]
["7.  Viajes y desplazamientos imputables a las actividades del proyecto subvencionable. (Máx. 10 % del importe de la subvención)",{"$f":"SUM(DespesesProjecteAb1[[#This Row],[Importe imputable a la subvención municipal]],DespesesProjecteAb1[[#This Row],[Importe de l''aportació / Cofinanciación de la entidad]])","v":0},{"$f":"SUM(C49:C51)","v":0},{"$f":"SUM(D49:D51)","v":0}]
[]
[]
[]
["TOTAL DE GASTOS PREVISTOS",{"$f":"SUM(B24,B28,B32,B36,B40,B44,B48)","v":0},{"$f":"SUM(C24,C28,C32,C36,C40,C44,C48)","v":0},0]
[]
["Barcelona, "]
[]
["Sello de la entidad",null,"Firma del Presidente/a o persona autorizada"]
[]
[]
["1.  La cuantía de la subvención otorgada no superará el 80% del gasto total del proyecto a subvencionar. "]
["2.  Las solicitudes pueden contener una propuesta de proyecto de formación que contenga las tres submodalidades (Ac1, Ac2, Ac3), dos de ellas o bien sólo una modalidad. "]
["3.  En cualquier caso, el importe máximo de subvención, tanto si la solicitud contiene una, dos o tres submoldalidades, será de 4.500 €. "]
["4.  Los gastos de viajes y desplazamientos imputables a las actividades del proyecto subvencionable se limitan a un máximo de un 10\" del importe de la subvención."]
["5.  En caso que la solicitud presentada sobrepase el importe máximo, se considerará como importe solicitado el máximo de lo establecido en la convocatoria. "]
[]
[]
[]
[]
[]
["PREVISIÓN DE GASTOS DEL PROYECTO SUBVENCIONABLE"]
["c2. Gastos de matriculación del personal de la entidad en acciones formativas externas. "]
[]
["Partidas","Importe total del proyecto","Importe imputable a la subvención municipal","Importe de l'aportació / Cofinanciación de la entidad"]
["Gastos de matriculación en acciones formativas externas.",{"$f":"SUM(DespesesProjecteAb2[[#This Row],[Importe imputable a la subvención municipal]],DespesesProjecteAb2[[#This Row],[Importe de l''aportació / Cofinanciación de la entidad]])","v":0},{"$f":"SUM(C74:C84)","v":0},{"$f":"SUM(D74:D84)","v":0}]
[]
[]
[]
[]
[]
[]
[]
[]
[]
[]
[]
["TOTAL DE GASTOS PREVISTOS",{"$f":"SUM(B73)","v":0},{"$f":"SUM(C73)","v":0},{"$f":"SUM(D73)","v":0}]
[]
["Barcelona, "]
[]
["Sello de la entidad",null,"Firma del Presidente/a o persona autorizada"]
[]
[]
["1.  La cuantía de la subvención otorgada no superará el 80% del gasto total del proyecto a subvencionar. "]
["2.  Las solicitudes pueden contener una propuesta de proyecto de formación que contenga las tres submodalidades (Ac1, Ac2, Ac3), dos de ellas o bien sólo una modalidad. "]
["3.  En cualquier caso, el importe máximo de subvención, tanto si la solicitud contiene una, dos o tres submoldalidades, será de 4.500 €. "]
["5.  En caso que la solicitud presentada sobrepase el importe máximo, se considerará como importe solicitado el máximo de lo establecido en la convocatoria. "]
["6.  No son imputables en esta submodalidad ningún gasto indirecto de los detallados en el apartado 13.3 de las bases reguladoras."]
["6.  La formación a subvencionar deberá tener una duración mínima de 150 horas y/o un coste mínimo de 300 € por cada participante."]
[]
["PREVISIÓ DE DESPESES DEL PROJECTE SUBVENCIONABLE"]
["c3. Pràctiques de les persones estudiants universitàries i de formació dual de FP en entitats i empreses de l'ESS"]
[]
["Partidas","Importe total del proyecto","Importe imputable a la subvención municipal","Importe de l'aportació / Cofinanciación de la entidad"]
["1.  Gastos de ayuda económica-beca - del estudiante en prácticas",{"$f":"SUM(DespesesProjecteAb14[[#This Row],[Importe imputable a la subvención municipal]],DespesesProjecteAb14[[#This Row],[Importe de l''aportació / Cofinanciación de la entidad]])","v":0},{"$f":"SUM(C104:C108)","v":0},{"$f":"SUM(D104:D108)","v":0}]
[]
[]
[]
[]
[]
["2.  Gastos de seguridad social del alumno en prácticas",{"$f":"SUM(DespesesProjecteAb14[[#This Row],[Importe imputable a la subvención municipal]],DespesesProjecteAb14[[#This Row],[Importe de l''aportació / Cofinanciación de la entidad]])","v":0},{"$f":"SUM(C110:C114)","v":0},{"$f":"SUM(D110:D114)","v":0}]
[]
[]
[]
[]
[]
["3.  Gastos del contrato laboral de la formación dual, modalidad de contrato de formación y aprendizaje",{"$f":"SUM(DespesesProjecteAb14[[#This Row],[Importe imputable a la subvención municipal]],DespesesProjecteAb14[[#This Row],[Importe de l''aportació / Cofinanciación de la entidad]])","v":0},{"$f":"SUM(C116:C120)","v":0},{"$f":"SUM(D116:D120)","v":0}]
[]
[]
[]
[]
[]
["4.  Gastos de gestión asociados a la tramitación del Convenio de Cooperación Educativa, o el Acuerdo formativo de Colaboración.",{"$f":"SUM(DespesesProjecteAb14[[#This Row],[Importe imputable a la subvención municipal]],DespesesProjecteAb14[[#This Row],[Importe de l''aportació / Cofinanciación de la entidad]])","v":0},{"$f":"SUM(C122:C126)","v":0},{"$f":"SUM(D122:D126)","v":0}]
[]
[]
[]
[]
[]
[" TOTAL GASTOS PREVISTOS",{"$f":"B121+B115+B109+B103","v":0},{"$f":"C121+C115+C109+C103","v":0},{"$f":"D121+D115+D109+D103","v":0}]
[]
["Barcelona, "]
[]
["Sello de la entidad",null,"Firma del Presidente/a o persona autorizada"]
[]
["1.  La cuantía de la subvención otorgada no superará el 80% del gasto total del proyecto a subvencionar. "]
["2.  Las solicitudes pueden contener una propuesta de proyecto de formación que contenga las tres submodalidades (Ac1, Ac2, Ac3), dos de ellas o bien sólo una modalidad. "]
["3.  En cualquier caso, el importe máximo de subvención, tanto si la solicitud contiene una, dos o tres submoldalidades, será de 4.500 €. "]
["4.  El importe máximo permitido para la modalidad Ac3 (prácticas de personas estudiantes) es de 3.500 €"]
["5.  En caso que la solicitud presentada sobrepase el importe máximo, se considerará como importe solicitado el máximo de lo establecido en la convocatoria. "]
["6.  No son imputables en esta submodalidad ningún gasto indirecto de los detallados en el apartado 13.3 de las bases reguladoras."]
["7.  Los/las alumnas beneficiarios/as deben ser personas residentes en la ciudad o matriculados/as en universidades o centros de formación de la ciudad."]
["8.  El programa de prácticas de las alumnas debe tener una duración mínima de 400 horas. "]
["9.  Sólo puede presentarse una solicitud para un puesto de prácticas por entidad solicitante."]
["10.  Es imprescindible dar de alta al alumno/a en la seguridad social como alumno/a en prácticas."]
["11.  El coste bruto/ hora de la remuneración del alumno/a en prácticas universitarias no podrá ser inferior a de 6€/hora "]
[]
["PREVISIÓ DE DESPESES DEL PROJECTE SUBVENCIONABLE (c1 + c2 + c3) "]
[]
[]
["Partidas","Importe total del proyecto","Importe imputable a la subvención municipal","Importe de l'aportació / Cofinanciación de la entidad"]
["TOTAL DE GASTOS PREVISTOS",{"$f":"SUM(B52,B85,B127)","v":0},{"$f":"SUM(C52,C85,C127)","v":0},0]
[]
["Barcelona, "]
[]
["Sello de la entidad",null,"Firma del Presidente/a o persona autorizada"]
[]
["1.  La cuantía de la subvención otorgada no superará el 80% del gasto total del proyecto a subvencionar. "]
["2.  Las solicitudes pueden contener una propuesta de proyecto de formación que contenga las tres submodalidades (Ac1, Ac2, Ac3), dos de ellas o bien sólo una modalidad. "]
["3.  En cualquier caso, el importe máximo de subvención, tanto si la solicitud contiene una, dos o tres submoldalidades, será de 4.500 €. "]
["4.  El importe máximo permitido para la modalidad Ac3 (prácticas de personas estudiantes) es de 3.500 €"]
["5.  En caso que la solicitud presentada sobrepase el importe máximo, se considerará como importe solicitado el máximo de lo establecido en la convocatoria. "]